Cogmind - Beta 16.1 @@@ ROGUE MODE // 2026.06.17 @ 12:48:16 Player: 5NDR-4 Result: Destroyed by X-67 Chaingunner with Heavy Machine Gun Performance ------------- Evolutions (3) 1500 Regions Visited (7) 1400 Robots Destroyed (64) 320 Value Destroyed (1894) 1894 Prototype IDs (23) 460 Alien Tech Used (0) 0 Bonus (900) 900 TOTAL SCORE: 6474 Bonus ------- High Alert Combat Kills 100 Entered DSFs 500 Aligned with FarCom 300 Cogmind --------- Core Integrity 0/700 Matter 82/300 Energy 100/100 System Corruption 0% Temperature Cool (0) Movement Core (700) Ox13 Location -7/DSF Parts ------- > --- POWER (1) -------- (None) > --- PROPULSION (4) --- (None) > --- UTILITY (4) ------ High-capacity Storage Unit Targeting Computer > --- WEAPON (4) ------- (None) > --- INVENTORY (20) --- Armored Huge Wheel Armored Huge Wheel Large Storage Unit Assault Rifle Autogun Shotgun Light Cannon AWS/Autocannon Heavy Rocket Launcher Heavy Rocket Launcher Heavy Rocket Launcher Peak State ------------ > --- POWER ------------ Light Ion Engine > --- PROPULSION ------- Armored Huge Wheel Armored Huge Wheel > --- UTILITY ---------- High-capacity Storage Unit Targeting Computer Light Armor Plating > --- WEAPON ----------- Gatling Laser Flak Gun Flak Cannon Chainsword > --- INVENTORY -------- Armored Huge Wheel Armored Huge Wheel Large Storage Unit ECM Suite Assault Rifle Autogun Shotgun Light Cannon AWS/Autocannon Heavy Rocket Launcher Heavy Rocket Launcher Heavy Rocket Launcher Heavy Rocket Launcher [Rating: 42] Favorites ----------- Power Light Nuclear Core Engine Light Ion Engine Power Core Light Nuclear Core Propulsion Light Treads Treads Light Treads Wheel Armored Huge Wheel Utility Seismic Detector Device Seismic Detector Storage High-capacity Storage Unit Processor Targeting Computer Protection Light Armor Plating Weapon Light Cannon Energy Gun Arc Projector Ballistic Gun Assault Rifle Ballistic Cannon Light Cannon Launcher Heavy Rocket Launcher Slashing Weapon Chainsword Build | -11 -10 -10 -10 -9 -8 -7 -7 ------- Run | Yrd Mat Min Exi Min Mat Fac DSF Slots Evolved 6 | . . . . . 4 2 . Power . | . . . . . . . . Propulsion 2 | . . . . . 2 . . Utility 2 | . . . . . 1 1 . Weapon 2 | . . . . . 1 1 . Parts Attached 34 | 7 5 2 . 4 14 2 . Power 4 | 1 . 1 . 1 1 . . Engine 3 | 1 . . . 1 1 . . Core 1 | . . 1 . . . . . Reactor . | . . . . . . . . Propulsion 9 | 2 2 . . . 5 . . Treads 7 | 2 2 . . . 3 . . Leg . | . . . . . . . . Wheel 2 | . . . . . 2 . . Hover . | . . . . . . . . Flight . | . . . . . . . . Utility 9 | 2 1 1 . 2 2 1 . Device 3 | 1 . . . . 1 1 . Storage 4 | 1 1 1 . 1 . . . Processor 1 | . . . . 1 . . . Hackware . | . . . . . . . . Protection 1 | . . . . . 1 . . Artifact . | . . . . . . . . Weapon 12 | 2 2 . . 1 6 1 . Energy Gun 3 | 1 . . . 1 1 . . Energy Cannon . | . . . . . . . . Ballistic Gun 4 | 1 1 . . . 1 1 . Ballistic Cannon 2 | . 1 . . . 1 . . Launcher 2 | . . . . . 2 . . Special Weapon . | . . . . . . . . Impact Weapon . | . . . . . . . . Slashing Weapon 1 | . . . . . 1 . . Piercing Weapon . | . . . . . . . . Special Melee Weapon . | . . . . . . . . Unidentified Prototypes . | . . . . . . . . Parts Lost 14 | . . 1 . 1 3 . 9 Power 4 | . . 1 . 1 1 . 1 Propulsion 3 | . . . . . 1 . 2 Utility 3 | . . . . . 1 . 2 Weapon 4 | . . . . . . . 4 Highest Loss Streak 8 | . . 1 . 1 1 . 8 To Critical Strikes . | . . . . . . . . Average Backups 12 | 3 6 9 11 15 14 13 11 Power 1 | 1 1 1 2 1 . . . Propulsion 1 | 1 2 2 2 2 1 2 2 Utility 2 | . . 2 3 3 3 2 1 Weapon 6 | 1 2 4 4 7 9 9 8 Tool/Special . | . . . . . . . . Unused Backups 14 | . 2 . . 1 5 . 6 Power . | . . . . . . . . Propulsion 5 | . 2 . . . 1 . 2 Utility . | . . . . . . . . Weapon 9 | . . . . 1 4 . 4 Tool/Special . | . . . . . . . . Average Slot Usage (%) 94 | . 100 99 100 100 87 76 66 Engine 6 | . 14 5 . 2 8 7 5 Core 5 | . . 8 14 11 . . . Treads 23 | . 28 28 28 28 16 . . Wheel 3 | . . . . . 8 15 12 Device 9 | . 14 14 14 2 5 . 6 Storage 12 | . 14 14 14 14 9 7 7 Processor 4 | . . . . 11 9 7 7 Protection 1 | . . . . . 2 7 5 Energy Gun 4 | . 11 . . 5 5 7 4 Ballistic Gun 10 | . 14 14 14 8 7 7 5 Ballistic Cannon 10 | . 2 14 14 14 9 7 2 Launcher 1 | . . . . . 3 . 3 Peak Build Rating 42 | 7 8 10 13 17 38 42 42 Average Rating 17 | 5 7 8 12 14 29 42 33 On Entrance 16 | . 7 7 10 13 15 38 42 Avg Prop Armor Cover (%) 6 | . . . . . 6 . . Naked Turns . | . . . . . . . . Heaviest Build 69 | 14 21 31 31 52 62 65 69 Greatest Support 83 | 40 40 40 40 40 83 56 56 Greatest Overweight (x) 19 | . . . . 1 19 1 1 Average Overweight (x) . | . . . . . . 1 . Largest Inventory Capacity 20 | 8 10 15 15 20 20 20 20 Average Capacity 16 | 7 8 13 15 19 20 20 20 Most Carried 20 | 5 10 12 14 20 20 17 16 Average Carried 13 | 3 6 9 13 18 17 16 15 Final Capacity 20 | 8 10 15 15 20 20 20 20 Final Carried 19 | 4 8 11 14 19 18 16 15 Class Distribution -------------------- 70% | Mutant 17% | Skirmisher 12% | Derelict-Skirmisher Dominant Class ---------------- Mutant | -10/Materials Mutant | -10/Mines Mutant | -10/Exiles Mutant | -9/Mines Skirmisher | -8/Materials Skirmisher | -7/Factory Skirmisher | -7/DSF Resources | -11 -10 -10 -10 -9 -8 -7 -7 ----------- Run | Yrd Mat Min Exi Min Mat Fac DSF Matter Collected 1260 | 273 60 138 . 70 605 . 114 Remotely . | . . . . . . . . Salvage Created 1995 | 61 219 163 . 108 1132 . 312 Parts 116 | 5 15 11 . 7 70 . 8 Haulers Intercepted 2 | . 1 . . . 1 . . Recyclers Shooed 5 | . . 1 . . 4 . . Parts Field Recycled . | . . . . . . . . Retrieved Matter . | . . . . . . . . Parts Self-Destructed . | . . . . . . . . Prevented . | . . . . . . . . Parts Restored . | . . . . . . . . Kills | -11 -10 -10 -10 -9 -8 -7 -7 ------- Run | Yrd Mat Min Exi Min Mat Fac DSF Combat Hostiles Destroyed 46 | . 7 2 . 2 27 . 8 Melee 4 | . . . . . 2 . 2 Guns 16 | . 6 . . 1 9 . . Cannons 11 | . 1 2 . 1 7 . . AOE 15 | . . . . . 9 . 6 Classes Destroyed 13 | 2 3 1 . 2 4 . 1 Worker 3 | . . . . 2 1 . . Builder 2 | . . 1 . . 1 . . Tunneler 1 | 1 . . . . . . . Hauler 2 | . 1 . . . 1 . . Recycler 6 | 1 . 1 . . 4 . . Operator 2 | . . . . . 2 . . Watcher 2 | . . . . . 2 . . Swarmer 13 | . 4 . . . 7 . 2 Grunt 23 | . 3 2 . 1 14 . 3 Brawler 1 | . . . . 1 . . . Duelist 1 | . . . . . 1 . . Sentry 5 | . . . . . 5 . . Specialist 3 | . . . . . . . 3 Best Kill Streak 6 | 1 2 3 . 3 6 . 3 Combat Bots Only 4 | . 2 2 . 2 4 . 3 Max Kills in Single Turn 5 | 1 1 1 . 1 5 . 1 Gunslinging . | . . . . . . . . Exploded 4 | . . . . . 4 . 1 Melee 1 | . . . . . 1 . 1 Uniques/NPCs Destroyed . | . . . . . . . . Combat | -11 -10 -10 -10 -9 -8 -7 -7 -------- Run | Yrd Mat Min Exi Min Mat Fac DSF Hostile Shots Fired 274 | . 42 19 . 11 85 . 117 Missed 76 | . 12 7 . 3 23 . 31 Hits 198 | . 30 12 . 8 62 . 86 Melee 3 | . . . . 2 1 . . Projectile 195 | . 30 12 . 6 61 . 86 Critical Strikes 7 | . 1 1 . . 2 . 3 Damage Taken 3197 | . 287 161 . 117 872 . 1760 Core 879 | . 39 12 . 41 83 . 704 Absorbed by Shields . | . . . . . . . . Core Remaining (%) 82 | 100 . . . 63 84 . . Volleys Fired 124 | 7 35 10 . 8 47 . 17 Largest 3 | 2 2 2 . 2 3 . 3 Hottest 147 | 70 70 50 . 85 117 . 147 Shots Fired 252 | 14 70 20 . 16 113 . 19 Gun 162 | 14 66 10 . 8 59 . 5 Cannon 61 | . 4 10 . 8 39 . . Launcher 29 | . . . . . 15 . 14 Special . | . . . . . . . . Kinetic 144 | 7 39 20 . 9 68 . 1 Thermal 47 | 7 31 . . . 5 . 4 Explosive 29 | . . . . . 15 . 14 Electromagnetic 32 | . . . . 7 25 . . Robot Hit Streak 14 | 9 8 4 . 8 14 . 5 Robot Miss Streak 15 | 1 3 2 . 3 15 . 4 Penetration Max . | . . . . . . . . Secondary Targets . | . . . . . . . . Shots Hit Robots 160 | 11 37 13 . 11 73 . 15 Core Hits 131 | 3 15 7 . 5 80 . 21 Critical Kills . | . . . . . . . . Critical Parts Destroyed 1 | . 1 . . . . . . Critical Strikes 7 | 1 4 . . 1 1 . . Burn 4 | 1 3 . . . . . . Destroy 1 | . 1 . . . . . . Blast 1 | . . . . 1 . . . Sever 1 | . . . . . 1 . . Melee Attacks 14 | . . . . . 8 . 6 Impact . | . . . . . . . . Slashing 14 | . . . . . 8 . 6 Piercing . | . . . . . . . . Sneak Attacks 1 | . . . . . 1 . . Combat Hostiles . | . . . . . . . . Follow-up Attacks . | . . . . . . . . Damage Inflicted 5155 | 127 371 189 . 171 2843 . 1454 Guns 1204 | 127 354 86 . 78 499 . 60 Cannons 727 | . 17 103 . 88 519 . . Explosions 2891 | . . . . . 1601 . 1290 Melee 328 | . . . . . 224 . 104 Ramming 5 | . . . . 5 . . . Kinetic 1360 | 39 196 189 . 100 810 . 26 Thermal 366 | 88 175 . . . 69 . 34 Explosive 2891 | . . . . . 1601 . 1290 Electromagnetic 205 | . . . . 66 139 . . Impact . | . . . . . . . . Slashing 328 | . . . . . 224 . 104 Piercing . | . . . . . . . . Highest Corruption . | . . . . . . . . Average Corruption . | . . . . . . . . Corruption Purged . | . . . . . . . . Corruption Blocked . | . . . . . . . . Overload Shots . | . . . . . . . . Overflow Damage 100 | . . . . . 57 . 43 Projectiles . | . . . . . . . . Explosions 100 | . . . . . 57 . 43 Melee . | . . . . . . . . Knockbacks 13 | . . 1 . 1 11 . . Impact . | . . . . . . . . Kinetic 12 | . . 1 . 1 10 . . Secondary 1 | . . . . . 1 . . Self-Inflicted Damage 38 | . . . . . 38 . . Shots 1 | . . . . . 1 . . Rammed . | . . . . . . . . Targets Rammed 1 | . . . . 1 . . . Kicked . | . . . . . . . . Crushed 1 | . . . . 1 . . . Highest Temperature 181 | 80 120 24 . 181 139 . 9 Average Temperature 44 | 28 45 7 . 89 38 . 5 Received Heat Transfer 636 | . 78 108 . 36 342 . 72 Siege Activations . | . . . . . . . . Martial Activations . | . . . . . . . . Shielding Activations . | . . . . . . . . Robots Disrupted . | . . . . . . . . Combat Hostiles . | . . . . . . . . Robots Corrupted . | . . . . . . . . Combat Hostiles . | . . . . . . . . Parts Fried . | . . . . . . . . Impact Corruptions . | . . . . . . . . Robots Melted . | . . . . . . . . Combat Hostiles . | . . . . . . . . Parts Melted 3 | 1 2 . . . . . . Heat Transferred 1298 | 333 740 . . . 150 . 75 Parts Sabotaged . | . . . . . . . . Parts Stolen . | . . . . . . . . Parts Stripped . | . . . . . . . . Power Chain Reactions . | . . . . . . . . Alert | -11 -10 -10 -10 -9 -8 -7 -7 ------- Run | Yrd Mat Min Exi Min Mat Fac DSF Maximum Alert Level 2 | . . . . . 2 1 2 Low Security (%) 76 | 100 100 100 . 100 45 . 22 Level 1 9 | . . . . . 20 100 33 Level 2 14 | . . . . . 34 . 43 Level 3 . | . . . . . . . . Level 4 . | . . . . . . . . Level 5 . | . . . . . . . . High Security . | . . . . . . . . Max Security . | . . . . . . . . Sterilizations 1 | . . . . . . . 1 Peak Influence 616 | 5 170 50 . 37 616 263 442 Initial 263 | . . 50 . . . 263 184 Average 135 | 1 87 6 . 3 288 263 321 Influence Increases 1785 | 10 292 60 . 60 1045 . 318 Destroy 0b10 Robot/C 920 | . 140 40 . 40 540 . 160 Destroy 0b10 Robot/NC 105 | 10 5 10 . 10 55 . 15 Destroy Leader 208 | . 42 10 . 10 116 . 30 Successful Hack 40 | . . . . . 40 . . Disable Machine 90 | . . . . . 75 . 15 Destroy Structure 227 | . . . . . 144 . 83 Lose Combat Pursuer 195 | . 105 . . . 75 . 15 Influence Decreases 1373 | 10 162 190 . 58 468 316 169 Entered New Map 477 | . . 80 . . 2 316 79 Time Decay 726 | 10 162 110 . 48 396 . . Lost Part 120 | . . . . 10 20 . 90 Purge Threat 50 | . . . . . 50 . . Squads Dispatched 9 | . 3 . . 1 3 . 2 Investigation 3 | . 1 . . 1 1 . . Extermination . | . . . . . . . . Reinforcement 5 | . 2 . . . 1 . 2 Assault 1 | . . . . . 1 . . Garrison . | . . . . . . . . Intercept . | . . . . . . . . Searches Triggered . | . . . . . . . . Construction Impeded . | . . . . . . . . Haulers Reinforced . | . . . . . . . . Active Scanning Responses . | . . . . . . . . Cargo Convoy Interrupts . | . . . . . . . . Stealth | -11 -10 -10 -10 -9 -8 -7 -7 --------- Run | Yrd Mat Min Exi Min Mat Fac DSF Distress Signals 7 | . 2 1 . . 4 . . Communications Jammed . | . . . . . . . . Distress Signals . | . . . . . . . . Times Spotted 79 | . 20 2 . 2 42 . 13 Peak Tracking Total 7 | . 7 2 . 2 6 . 5 Tactical Retreats 8 | . 4 . . . 3 . 1 Traps | -11 -10 -10 -10 -9 -8 -7 -7 ------- Run | Yrd Mat Min Exi Min Mat Fac DSF Traps Triggered 1 | . 1 . . . . . . Indirectly . | . . . . . . . . Trap Hack Attempts . | . . . . . . . . Triggered . | . . . . . . . . Disarmed . | . . . . . . . . Reprogrammed . | . . . . . . . . Reused . | . . . . . . . . Traps Extracted . | . . . . . . . . Installed . | . . . . . . . . Triggered . | . . . . . . . . Machines | -11 -10 -10 -10 -9 -8 -7 -7 ---------- Run | Yrd Mat Min Exi Min Mat Fac DSF Machines Disabled 6 | . . . . . 5 . 1 Max in Single Turn 2 | . . . . . 2 . 1 Garrison Access 1 | . . . . . 1 . . Machines Repaired . | . . . . . . . . Machines Dismantled . | . . . . . . . . Machines Sabotaged . | . . . . . . . . Overloaded Fab Kills . | . . . . . . . . Hacking | -11 -10 -10 -10 -9 -8 -7 -7 --------- Run | Yrd Mat Min Exi Min Mat Fac DSF Machines Accessed 16 | . 1 . 1 1 12 1 . Terminals 12 | . 1 . . . 10 1 . Fabricators . | . . . . . . . . Repair Stations 1 | . . . . . 1 . . Recycling Units . | . . . . . . . . Scanalyzers . | . . . . . . . . Garrison Access 1 | . . . . . 1 . . Total Hacks 30 | . 2 . 1 1 24 2 . Successful 16 | . 1 . 1 1 12 1 . Failed 14 | . 1 . . . 12 1 . Catastrophic 1 | . . . . . 1 . . Database Lockouts . | . . . . . . . . Manual 21 | . 2 . 1 . 18 . . Terminals 23 | . 2 . . . 19 2 . Fabricators . | . . . . . . . . Repair Stations 3 | . . . . . 3 . . Recycling Units . | . . . . . . . . Scanalyzers . | . . . . . . . . Garrison Access 2 | . . . . . 2 . . Terminal Hacks 4 | . . . 1 1 1 1 . Open Door 1 | . . . . 1 . . . Open DSF 1 | . . . . . . 1 . Unreport Threat 1 | . . . . . 1 . . Proto ID Catalog 1 | . . . 1 . . . . Fabricator Hacks . | . . . . . . . . Repair Station Hacks 1 | . . . . . 1 . . Scan Component 1 | . . . . . 1 . . Recycling Unit Hacks . | . . . . . . . . Scanalyzer . | . . . . . . . . Garrison Access Hacks 1 | . . . . . 1 . . Seal Access 1 | . . . . . 1 . . Unauthorized Hacks 10 | . 1 . . . 9 . . Terminals 10 | . 1 . . . 9 . . Botnet 3 | . 1 . . . 2 . . Skim 7 | . . . . . 7 . . Fabricators . | . . . . . . . . Repair Stations . | . . . . . . . . Recycling Units . | . . . . . . . . Scanalyzers . | . . . . . . . . Garrison Access . | . . . . . . . . Data Cores Recovered 1 | . . . . . 1 . . Used . | . . . . . . . . Hacking Detections 8 | . 1 . . . 7 . . Full Trace Events 2 | . . . . . 2 . . Feedback Events . | . . . . . . . . Feedback Blocked . | . . . . . . . . Robot Schematics Acquired . | . . . . . . . . Robots Built . | . . . . . . . . Authchips . | . . . . . . . . Time . | . . . . . . . . Total Robot Build Rating . | . . . . . . . . Part Schematics Acquired . | . . . . . . . . Parts Built . | . . . . . . . . Authchips . | . . . . . . . . Time . | . . . . . . . . Total Part Build Rating . | . . . . . . . . Part Studies Acquired . | . . . . . . . . Parts Repaired . | . . . . . . . . Time . | . . . . . . . . Parts Recycled . | . . . . . . . . Recycled Matter . | . . . . . . . . Retrieved Matter . | . . . . . . . . Retrieved Components . | . . . . . . . . Parts Scanalyzed . | . . . . . . . . Part Schematics Acquired . | . . . . . . . . Parts Damaged . | . . . . . . . . Bothacking | -11 -10 -10 -10 -9 -8 -7 -7 ------------ Run | Yrd Mat Min Exi Min Mat Fac DSF Used RIF Installer . | . . . . . . . . Robots Hacked . | . . . . . . . . Non-combat . | . . . . . . . . Combat . | . . . . . . . . Robot Hacks Applied . | . . . . . . . . Relay Couplers Released . | . . . . . . . . Fabnet Peak Effective % . | . . . . . . . . Robots Rewired . | . . . . . . . . Allies Hacked . | . . . . . . . . Hacks Repelled . | . . . . . . . . Allies | -11 -10 -10 -10 -9 -8 -7 -7 -------- Run | Yrd Mat Min Exi Min Mat Fac DSF Total Allies . | . . . . . . . . Largest Group . | . . . . . . . . Highest-Rated Group . | . . . . . . . . Highest-Rated Ally . | . . . . . . . . Total Orders . | . . . . . . . . Ally Attacks . | . . . . . . . . Total Damage . | . . . . . . . . Kills . | . . . . . . . . Allies Corrupted . | . . . . . . . . Allies Melted . | . . . . . . . . Intel | -11 -10 -10 -10 -9 -8 -7 -7 ------- Run | Yrd Mat Min Exi Min Mat Fac DSF Active Infowar (turns) 2143 | 32 474 818 667 110 . 5 37 Seismic 2101 | 32 474 818 667 110 . . . ECM 42 | . . . . . . 5 37 Robot Analysis Total . | . . . . . . . . Derelict Logs Recovered 3 | . . 2 . 1 . . . Drone Launches . | . . . . . . . . Drone Recoveries . | . . . . . . . . Exploration | -11 -10 -10 -10 -9 -8 -7 -7 ------------- Run | Yrd Mat Min Exi Min Mat Fac DSF Turns Passed 4209 | 127 474 818 667 648 1295 6 174 Spaces Moved 2255 | 64 199 483 417 272 721 4 95 Core 13 | 11 . . . . 2 . . Treads 1678 | 53 199 483 417 272 254 . . Legs . | . . . . . . . . Wheels 564 | . . . . . 465 4 95 Hover . | . . . . . . . . Flight . | . . . . . . . . Fastest Speed 50 | 50 160 160 160 160 115 115 100 Average Speed 156 | 141 160 160 160 223 133 115 113 Slowest Speed 1000 | 160 160 160 160 240 1000 115 115 Overloaded Moves . | . . . . . . . . Propulsion Burnouts . | . . . . . . . . Robots Hopped . | . . . . . . . . Potential Cave-ins . | . . . . . . . . Cave-ins Triggered . | . . . . . . . . Exploration Rate (%) 59 | 4 37 78 88 54 74 . 81 Regions Visited 7 Branch Regions 3 Pre-discovered Areas 1 | . . 1 . . . . . Known Exits Taken 1 | . . . . . . 1 . Unknown Exits Taken 6 | 1 1 1 1 1 1 . . Scrap Searched 2 | . . . . 2 . . . Spaces Dug 3 | . . . . . 3 . . Terrain Destroyed 284 | . . . . . 164 . 120 Melee 3 | . . . . . 3 . . Projectile . | . . . . . . . . AOE 281 | . . . . . 161 . 120 Terrain Rammed . | . . . . . . . . Walls Destroyed . | . . . . . . . . Machines Disabled . | . . . . . . . . Actions | -11 -10 -10 -10 -9 -8 -7 -7 --------- Run | Yrd Mat Min Exi Min Mat Fac DSF Total 2690 | 88 293 508 417 296 950 5 133 Wait 194 | . 39 10 . 3 130 . 12 Move 2248 | 63 198 482 416 271 720 3 95 Hop . | . . . . . . . . Pick Up 45 | 11 9 4 1 7 13 . . Fast Attach . | . . . . . . . . Attach 21 | 7 . 1 . 1 9 2 1 Detach . | . . . . . . . . Swap 22 | . 5 1 . 3 11 . 2 Drop 21 | . 7 . . 2 12 . . Fire 124 | 7 35 10 . 8 47 . 17 Melee 14 | . . . . . 8 . 6 Ram . | . . . . . . . . Kick . | . . . . . . . . Crush 1 | . . . . 1 . . . Escape Stasis . | . . . . . . . . Rewire . | . . . . . . . . Trap . | . . . . . . . . Miscellaneous . | . . . . . . . . Route ------- -11/Scrapyard -10/Materials (discovered 2 exits: [*Mat] / [*Min]) -10/Mines -10/Exiles -9/Mines -8/Materials (discovered 3 exits: *Fac x2 / *Sto) -7/Factory (discovered 3 exits: Low x2 / DSF) -7/DSF (discovered 1 exit: [*Fac]) History --------- Turn | Location | Event 7 | -11/Scrapyard | Discovered new exit (range 15) 128 | -11/Scrapyard | Entered Materials 260 | -10/Materials | Discovered new exit (range 11) 300 | -10/Materials | Build established: Mutant 500 | -10/Materials | Discovered new exit (range 6) 602 | -10/Materials | Entered Mines 745 | -10/Mines | Learned location of Recycling (-8) 859 | -10/Mines | Learned Materials trap positions 1411 | -10/Mines | Deemed a non-threat by the Exiles lab entrance 1411 | -10/Mines | Discovered new exit (range 5) 1420 | -10/Mines | Entered Exiles 1472 | -10/Exiles | Met 8R-AWN 1492 | -10/Exiles | Met EX-HEX 1540 | -10/Exiles | Met EX-BIN 1569 | -10/Exiles | Aligned with FarCom system 1571 | -10/Exiles | Given EX-Vault access code 1612 | -10/Exiles | Opened EX-Vault 1624 | -10/Exiles | Found AWS/Autocannon 1658 | -10/Exiles | Warned to stay clear of 0b10 Research branches 1701 | -10/Exiles | Met EX-DEC 1818 | -10/Exiles | Visited The Gauntlet 2069 | -10/Exiles | Discovered new exit (range 12) 2087 | -10/Exiles | Left Exiles lab with AWS/Autocannon 2087 | -10/Exiles | Entered Mines 2328 | -9/Mines | Found a hidden stash of uninstalled traps 2436 | -9/Mines | Received a Rocket Launcher from a helpful Derelict 2471 | -9/Mines | Met a Derelict shopkeep closing up shop 2691 | -9/Mines | Discovered new exit (range 9) 2735 | -9/Mines | Entered Materials 2735 | -8/Materials | Evolved 4 slots: Propulsion x2, Utility x1, Weapon x1 2736 | -8/Materials | Identified exit to Storage 2737 | -8/Materials | Loaded intel: 22 trap records 3111 | -8/Materials | Discovered new exit (range 5) 3563 | -8/Materials | Discovered new exit (range 16) 3694 | -8/Materials | Build established: Skirmisher 3935 | -8/Materials | First assault squad dispatched 3976 | -8/Materials | Learned location of 2 exits from Factory 4030 | -8/Materials | Entered Factory 4030 | -7/Factory | Evolved 2 slots: Utility x1, Weapon x1 4031 | -7/Factory | Identified exit to Lower Caves 4035 | -7/Factory | Identified exit to DSF 4036 | -7/Factory | Entered DSF 4083 | -7/DSF | Additional patrols routed to DSF 4092 | -7/DSF | Discovered new exit (range 16) 4193 | -7/DSF | Core integrity fell below 50% 4205 | -7/DSF | Core integrity fell below 20% 4209 | -7/DSF | Sterilization system engaged 4210 | -7/DSF | Destroyed by X-67 Chaingunner with Heavy Machine Gun Last Messages --------------- 04159_ C-30 ARC bursts open, deploying its payload. 04159_ S-27 Virus unfolds itself. 04161_ Hvy. Rocket Launcher destroyed. 04161_ Lgt. Armor Plating destroyed. 04163_ Lgt. Ion Engine destroyed. 04172_ Arm. Huge Wheel destroyed. 04183_ S-27 Virus destroyed. 04185_ Flak Gun destroyed. 04185_ Acquired 22 matter. 04186_ Arm. Huge Wheel destroyed. 04189_ X-67 Chaingunner springs to life. 04191_ S-27 Virus destroyed. 04192_ Acquired 29 matter. 04199_ ECM Suite destroyed. 04199_ Chainsword destroyed. 04203_ Knocked back. 04209_ ALERT: Persistent threat exposed, engaging DSF rapid sterilization system. [Achievement: Hot Goods] Map ----- +----------------------------------------------------+ | | | | | | | | | | | | | | | | | | | | | | | | | | | | | | | ?????????????????????????????????????????? | | ?????????????????????????????????????????? | | ?????????????????????????????????????????? | | ?????????????????????????????????????????? | | ??????????????????????????????""?????????? | | ?????????????????????????????#"#?????????? | | ????????????#???????????????##"####??????? | | ????????????# !!???#########"""""#??????? | | ????????????# !!! #!!!# ##"""""#??????? | | ????????????# ss ""##"????? | | ????????????# %@ =x """""????? | | ??????????????# ### #!!;;H ""##?????? | | ????????????????????# ??#!!### ###??????? | | ????????????????????????###### ##???????? | | ???????????????????????????#!! #???????? | | ???????????????????????????#!! #???????? | | ???????????????????????????### ##???????? | | ???????????????????????????#!! #???????? | | ??????????????????!?##?????#!! #???????? | | ??????????????????!!# ????#!! #???????? | | ####??###???????? # ####### ###??????? | | #? #??!#??? [[[# " #??????? | | ## #!!????? % [[ # #??????? | | ?????? ]]#??????? | | ???????? % ]]#??????? | | ?????????? * ]]#??????? | | #?????????? % # !!#??????? | | #??????????# [ !!#??????? | | # ###???????## ## #"#??????? | | **#??????#!! ==##### # !##??????? | | **#??????#!! =?????## # !#???????? | | **#???????!! =??????#?# !#???????? | | # ###??????### ###????##### ##???????? | | #??????#!! ###### ! #???????? | | #??????#!! # #! #???????? | +----------------------------------------------------+ Best States ------------- Heat Dissipation 45 Energy Generation 14 Energy Capacity 250 Matter Stores 300 Matter Capacity 300 Sight Range 16 Terrain Scan Density 10 ECM Strength 1 Armor Coverage 150 Evasion (%) 50 Targeting Accuracy 5 Recoil Reduction 4 Item Schematics ----------------- None Robot Schematics ------------------ None Fabricated ------------ Nothing Repaired ---------- Nothing Studied --------- None Alien Tech Used ----------------- None Achievements -------------- Deductive Reasoning Hey, That's Mine! Hot Goods Challenges ------------ None Game ------ Seed FocalAlphaChainsword Manual? 0 Play Time 00:47:04 Cumulative 14.5 hours Start 2026.06.15 @ 12:58:08 End 2026.06.17 @ 12:48:16 Sessions 3 Manual Loads 0 Difficulty Rogue Special Mode None Game No. 21 Rogue 21 Adventurer 0 Explorer 0 Win Type - Total 0 Types 0/0/0/0/0/0/0/0/0/0 Lore% 22 Gallery% 15 Achievement% 16 Wizard Run 0 Options --------- Layout 1 ASCII 0 Keyboard 0 Movement Mouse Keybinds 0 Fullscreen 1 Font 24/Smallcaps Map View 50x35 Zoom Use 0% Tactical HUD 1 Map Filters NONE Filters NONE Steam 1 RUN: 277b5492-210d-4a40-b46d-a4a376beabd3